fUSD/lending_fUSD_20250321
["ID","MTS","AMOUNT","RATE_DAILY","PERIOD"]
[356500750,1742562647899,-150.91,0.0003125,2]
[356500751,1742562647909,-1265.17,0.00031259,2]
[356500752,1742562647919,-608.0,0.0003126,5]
[356500753,1742562647928,-16907.5189811,0.0003126,2]
[356500754,1742562647940,-1303.17693193,0.0003126,2]
[356500755,1742562647951,-8312.48845889,0.0003126,2]
[356500756,1742562647964,-18702.17,0.0003126,2]
[356500757,1742562647976,-2386.6299326,0.0003126,2]
[356500758,1742562647988,-4191.56135918,0.0003126,2]
[356500759,1742562647999,-500.0,0.0003126,2]
[356500761,1742563305592,50000.0,0.0003126,31]
[356500766,1742563676489,-192.64826298,0.0001,2]
[356500767,1742563679803,-150.0,0.0001,2]
[356500768,1742563695995,-151.0,9.95e-05,2]
[356500770,1742563711825,48351.0697355,0.0003126,30]
[356500772,1742563723889,-256.318263,9.95e-05,2]
[356500774,1742563723918,-352.50794885,0.0001,2]
[356500776,1742563723948,-5231.7546496,0.0001,2]
[356500778,1742563723985,-4984.11190313,0.0001,2]
[356500780,1742563724027,-5840.58086145,0.0001,2]
[356500781,1742563724064,-5840.58086145,0.0001,2]
[356500782,1742563724104,-5840.58086145,0.0001,2]
[356500783,1742563724161,-5840.58086145,0.0001,2]
[356500785,1742563724220,-5840.58086145,0.0001,2]
[356500787,1742563727581,-154.0005802,0.0001,2]
[356500790,1742563802803,-150.0,9.999e-05,2]
[356500800,1742563832480,-150.0,0.0001,2]
[356500801,1742563832490,-1529.89477662,0.0001,2]
[356500817,1742563832896,-8500.0,0.0001,2]
[356500819,1742563832908,-756.79311258,0.0001,2]
[356500821,1742563832919,-6374.74,0.0001,2]
[356500841,1742563832930,-2895.19722316,0.0001,2]
[356500854,1742563833375,-151.0,0.0001,2]
[356500856,1742563838250,-12579.45,0.0001,2]
[356500857,1742563838262,-1894.95,0.0001,2]
[356500886,1742563840376,-2321.28370796,0.0001,2]
[356500900,1742563846310,-30643.72508803,0.0001,2]
[356500901,1742563846322,-112559.23678064,0.0001,2]
[356500902,1742563846333,-42266.5649867,0.0001,2]
[356500903,1742563846345,-54200.71975703,0.0001,2]
[356500904,1742563846356,-22096.52072,0.0001,2]
[356500905,1742563846368,-3522.39415,0.0001,2]
[356500906,1742563846379,-265.70000003,0.0001,2]
[356500911,1742563982529,-150.0,9.999e-05,2]
[356500912,1742564113778,-251.5281,9.99e-05,2]
[356500913,1742564282669,-150.0,9.99e-05,2]
[356500915,1742564462275,-150.0,9.99e-05,2]
[356500916,1742564530300,-45086.77723648,9.99e-05,2]
[356500917,1742564530325,-350.0,9.995e-05,2]
[356500918,1742564530352,-150.0,9.995e-05,2]
[356500919,1742564530382,-263.0997251,9.995e-05,2]
[356500920,1742564530408,-150.0,9.999e-05,2]
[356500921,1742564530438,-89573.81880228,0.0001,2]
[356500922,1742564792106,-350.0,0.00010272,2]
[356500923,1742564792127,-124.47105681,0.00010303,2]
[356500924,1742564840427,-1418.39123765,0.000102,2]
[356500925,1742564904378,-166.66666668,0.00010203,2]
[356500929,1742565031615,-25.52894319,0.00010303,2]
[356500930,1742565031624,-367.69300111,0.00010597,2]
[356500931,1742565031634,-367.69300112,0.0001075,2]
[356500932,1742565031643,-350.0,0.00011223,2]
[356500933,1742565031653,-150.0,0.00011299,2]
[356500934,1742565031662,-350.0,0.00011334,2]
[356500935,1742565031672,-150.0,0.00011334,2]
[356500936,1742565031681,-500.0,0.00011973,2]
[356500937,1742565031691,-150.0,0.00011999,2]
[356500938,1742565031699,-31245.07163608,0.00012,2]
[356500939,1742565031712,-1199.03640389,0.00012,2]
[356500940,1742565031723,-7612.57662504,0.00012,2]
[356500941,1742565031845,-949.94196682,0.00012,2]
[356500942,1742565031856,-550.05803318,0.00012,2]
[356500990,1742565037580,-2223.55960752,0.00012,2]
[356500991,1742565037592,-291.2856638,0.00012,2]
[356500992,1742565037638,-1191.53938235,0.00012,2]
[356500993,1742565037649,-18763.875,0.00012,2]
[356500994,1742565037699,-572.75232516,0.00012,2]
[356500995,1742565037759,-1249.815,0.00012,2]
[356500996,1742565037770,-543.83467452,0.00012,2]
[356500997,1742565037822,-262.61490112,0.00012,2]
[356501006,1742565039692,-16359.99999988,0.00012,2]
[356501007,1742565039936,-2270.09172701,0.00012,2]
[356501019,1742565042713,-12442.73894676,0.00012,2]
[356501020,1742565042725,-7643.16950169,0.00012,2]
[356501024,1742565043511,-1715.81612925,0.00012,2]
[356501060,1742565045730,-834.28358,0.00012,2]
[356501061,1742565045742,-817.96650734,0.00012,2]
[356501062,1742565045753,-3900.72387982,0.00012,2]
[356501063,1742565045800,-934.35431765,0.00012,2]
[356501064,1742565045813,-10405.65700902,0.00012,2]
[356501065,1742565045823,-250.0,0.00012,2]
[356501066,1742565045833,-171.45071,0.0001259,8]
[356501067,1742565045843,-171.45072,0.000129,8]
[356501068,1742565045853,-800.0,0.00013,2]
[356501070,1742565045862,-171.45072,0.0001322,9]
[356501071,1742565045872,-250.0,0.00013614,2]
[356501072,1742565045881,-1181.4206807,0.000137,2]
[356501073,1742565045890,-800.0,0.00014,3]
[356501074,1742565045899,-300.0,0.00014,2]
[356501075,1742565045908,-700.0,0.00015,4]
[356501076,1742565045918,-2209.47779497,0.00015152,2]
[356501078,1742565045928,-2035.0,0.00015645,2]
[356501080,1742565045937,-151.0,0.00015675,2]
[356501082,1742565045947,-350.0,0.00016,2]
[356501084,1742565045956,-352.33148619,0.000178,2]
[356501086,1742565045965,-400.0,0.00018,2]
[356501088,1742565045976,-159.79,0.000186,2]
[356501090,1742565045986,-339.774,0.00018645,2]
[356501091,1742565045995,-151.0,0.00018675,2]
[356501092,1742565046004,-450.0,0.0002,2]
[356501093,1742565046013,-151.0,0.00021675,2]
[356501094,1742565046022,-500.0,0.00022,2]
[356501095,1742565046031,-150.0,0.00022416,2]
[356501096,1742565046040,-200.0,0.00022501,2]
[356501098,1742565046050,-205.94,0.00022514,2]
[356501100,1742565046059,-1000.0,0.00022668,2]
[356501101,1742565046068,-500.0,0.00022721,2]
[356501102,1742565046077,-162.44,0.00022793,2]
[356501103,1742565046086,-15655.9617336,0.00022832,2]
[356501104,1742565046098,-8244.0382664,0.00022832,2]
[356501105,1742565046107,-2000.0,0.00022887,2]
[356501106,1742565046117,-413.1898638,0.000229,2]
[356501107,1742565046126,-150.0,0.00023023,7]
[356501108,1742565046135,-500.0,0.00023138,2]
[356501109,1742565046144,-754.92,0.00023166,2]
[356501110,1742565046154,-600.0,0.00023495,2]
[356501111,1742565046163,-220.46,0.00023765,2]
[356501112,1742565046173,-153.58,0.00023816,2]
[356501113,1742565046182,-250.0,0.0002386,2]
[356501114,1742565046192,-550.0,0.00024,2]
[356501115,1742565046201,-266.26,0.00024281,2]
[356501116,1742565046210,-1000.0,0.00024658,2]
[356501117,1742565046220,-151.0,0.00024675,2]
[356501118,1742565046229,-152.0,0.00024968,3]
[356501119,1742565046239,-413.18986371,0.000251,2]
[356501120,1742565046248,-162.06,0.00025249,30]
[356501121,1742565046258,-754.92,0.0002543,2]
[356501122,1742565046267,-1000.0,0.00025502,2]
[356501123,1742565046276,-465.815,0.00025634,10]
[356501124,1742565046286,-600.0,0.00026,2]
[356501125,1742565046296,-500.0,0.00026,2]
[356501126,1742565046305,-500.0,0.00026,2]
[356501127,1742565046315,-500.0,0.00026,2]
[356501128,1742565046324,-500.0,0.00026,2]
[356501129,1742565046333,-500.0,0.00026,2]
[356501130,1742565046342,-500.0,0.00026,2]
[356501131,1742565046351,-500.0,0.00026,2]
[356501132,1742565046360,-500.0,0.00026,2]
[356501133,1742565046369,-500.0,0.00026,2]
[356501134,1742565046378,-500.0,0.00026,2]
[356501135,1742565046388,-500.0,0.00026,2]
[356501136,1742565046400,-500.0,0.00026,2]
[356501137,1742565046410,-500.0,0.00026,2]
[356501138,1742565046419,-500.0,0.00026,2]
[356501139,1742565046429,-500.0,0.00026,2]
[356501140,1742565046439,-500.0,0.00026,2]
[356501141,1742565046448,-500.0,0.00026,2]
[356501142,1742565046457,-500.0,0.00026,2]
[356501143,1742565046466,-500.0,0.00026,2]
[356501144,1742565046477,-500.0,0.00026,2]
[356501145,1742565046487,-500.0,0.00026,2]
[356501146,1742565046497,-500.0,0.00026,2]
[356501147,1742565046507,-500.0,0.00026,2]
[356501148,1742565046516,-500.0,0.00026,2]
[356501149,1742565046526,-500.0,0.00026,2]
[356501150,1742565046535,-500.0,0.00026,2]
[356501151,1742565046545,-500.0,0.00026,2]
[356501152,1742565046555,-500.0,0.00026,2]
[356501153,1742565046565,-500.0,0.00026,2]
[356501154,1742565046574,-500.0,0.00026,2]
[356501155,1742565046584,-500.0,0.00026,2]
[356501156,1742565046593,-500.0,0.00026,2]
[356501157,1742565046602,-500.0,0.00026,2]
[356501158,1742565046611,-500.0,0.00026,2]
[356501159,1742565046621,-500.0,0.00026,2]
[356501160,1742565046630,-500.0,0.00026,2]
[356501161,1742565046639,-500.0,0.00026,2]
[356501162,1742565046649,-500.0,0.00026,2]
[356501163,1742565046658,-500.0,0.00026,2]
[356501164,1742565046668,-500.0,0.00026,2]
[356501165,1742565046677,-500.0,0.00026,2]
[356501166,1742565046687,-500.0,0.00026,2]
[356501167,1742565046696,-500.0,0.00026,2]
[356501168,1742565046706,-500.0,0.00026,2]
[356501169,1742565046715,-500.0,0.00026,2]
[356501170,1742565046726,-500.0,0.00026,2]
[356501171,1742565046736,-500.0,0.00026,2]
[356501172,1742565046745,-500.0,0.00026,2]
[356501173,1742565046755,-500.0,0.00026,2]
[356501174,1742565046764,-500.0,0.00026,2]
[356501175,1742565046774,-500.0,0.00026,2]
[356501176,1742565046784,-500.0,0.00026,2]
[356501177,1742565046793,-500.0,0.00026,2]
[356501178,1742565046803,-500.0,0.00026,2]
[356501179,1742565046812,-500.0,0.00026,2]
[356501180,1742565046820,-500.0,0.00026,2]
[356501181,1742565046829,-500.0,0.00026,2]
[356501182,1742565046839,-500.0,0.00026,2]
[356501183,1742565046848,-500.0,0.00026,2]
[356501184,1742565046860,-500.0,0.00026,2]
[356501185,1742565046869,-500.0,0.00026,2]
[356501186,1742565046878,-500.0,0.00026,2]
[356501187,1742565046888,-500.0,0.00026,2]
[356501188,1742565046897,-500.0,0.00026,2]
[356501189,1742565046906,-500.0,0.00026,2]
[356501190,1742565046915,-500.0,0.00026,2]
[356501191,1742565046925,-500.0,0.00026,2]
[356501192,1742565046934,-500.0,0.00026,2]
[356501193,1742565046943,-500.0,0.00026,2]
[356501194,1742565046952,-500.0,0.00026,2]
[356501195,1742565046962,-500.0,0.00026,2]
[356501196,1742565046972,-500.0,0.00026,2]
[356501197,1742565046981,-500.0,0.00026,2]
[356501198,1742565046991,-500.0,0.00026,2]
[356501199,1742565047001,-500.0,0.00026,2]
[356501200,1742565047011,-500.0,0.00026,2]
[356501201,1742565047019,-878.0,0.00026,2]
[356501202,1742565047029,-500.0,0.00026,2]
[356501203,1742565047039,-500.0,0.00026,2]
[356501204,1742565047048,-500.0,0.00026,2]
[356501205,1742565047058,-500.0,0.00026,2]
[356501206,1742565047067,-500.0,0.00026,2]
[356501207,1742565047077,-500.0,0.00026,2]
[356501208,1742565047086,-500.0,0.00026,2]
[356501209,1742565047096,-500.0,0.00026,2]
[356501210,1742565047106,-500.0,0.00026,2]
[356501211,1742565047115,-500.0,0.00026,2]
[356501212,1742565047124,-500.0,0.00026,2]
[356501213,1742565047133,-500.0,0.00026,2]
[356501214,1742565047143,-500.0,0.00026,2]
[356501215,1742565047153,-500.0,0.00026,2]
[356501216,1742565047162,-500.0,0.00026,2]
[356501217,1742565047172,-500.0,0.00026,2]
[356501218,1742565047182,-500.0,0.00026,2]
[356501219,1742565047191,-500.0,0.00026,2]
[356501220,1742565047201,-500.0,0.00026,2]
[356501221,1742565047211,-500.0,0.00026,2]
[356501222,1742565047222,-500.0,0.00026,2]
[356501223,1742565047232,-500.0,0.00026,2]
[356501224,1742565047242,-500.0,0.00026,2]
[356501225,1742565047252,-500.0,0.00026,2]
[356501226,1742565047262,-500.0,0.00026,2]
[356501227,1742565047271,-500.0,0.00026,2]
[356501228,1742565047281,-500.0,0.00026,2]
[356501229,1742565047290,-500.0,0.00026,2]
[356501230,1742565047300,-500.0,0.00026,2]
[356501231,1742565047309,-500.0,0.00026,2]
[356501232,1742565047319,-500.0,0.00026,2]
[356501233,1742565047329,-500.0,0.00026,2]
[356501234,1742565047338,-500.0,0.00026,2]
[356501235,1742565047348,-500.0,0.00026,2]
[356501236,1742565047358,-500.0,0.00026,2]
[356501237,1742565047368,-500.0,0.00026,2]
[356501238,1742565047378,-500.0,0.00026,2]
[356501239,1742565047389,-500.0,0.00026,2]
[356501240,1742565047401,-500.0,0.00026,2]
[356501241,1742565047411,-500.0,0.00026,2]
[356501242,1742565047421,-500.0,0.00026,2]
[356501243,1742565047431,-500.0,0.00026,2]
[356501244,1742565047441,-500.0,0.00026,2]
[356501245,1742565047579,-500.0,0.00026,2]
[356501246,1742565047589,-500.0,0.00026,2]
[356501247,1742565047599,-500.0,0.00026,2]
[356501248,1742565047609,-500.0,0.00026,2]
[356501249,1742565047619,-500.0,0.00026,2]
[356501250,1742565047629,-500.0,0.00026,2]
[356501251,1742565047639,-500.0,0.00026,2]
[356501252,1742565047649,-825.0,0.00026,2]
[356501253,1742565047659,-152.0,0.00026255,4]
[356501254,1742565047669,-155.7,0.00026849,2]
[356501255,1742565047679,-200.37,0.00026849,2]
[356501256,1742565047689,-413.18986371,0.000273,2]
[356501257,1742565047698,-500.0,0.00027397,2]
[356501258,1742565047708,-500.0,0.00027397,2]
[356501259,1742565047718,-191.14059365,0.00027397,2]
[356501260,1742565047730,-500.0,0.00027397,2]
[356501261,1742565047740,-500.0,0.00027397,2]
[356501262,1742565047749,-500.0,0.00027397,2]
[356501263,1742565047759,-500.0,0.00027397,2]
[356501264,1742565047769,-500.0,0.00027397,2]
[356501265,1742565047778,-500.0,0.00027397,2]
[356501266,1742565047788,-500.0,0.00027397,2]
[356501267,1742565047797,-450.0,0.00027397,2]
[356501268,1742565047807,-521.93,0.00027397,2]
[356501269,1742565047817,-152.0,0.00027542,5]
[356501270,1742565047826,-151.0,0.00027675,2]
[356501271,1742565047836,-754.92,0.00027694,2]
[356501272,1742565047846,-35030.47296244,0.0002798,2]
[356501273,1742565047856,-650.0,0.00028,2]
[356501274,1742565047866,-1000.0,0.00028335,2]
[356501275,1742565047875,-521.93,0.00028767,2]
[356501276,1742565047885,-152.0,0.0002883,6]
[356501277,1742565047895,-413.18986371,0.000295,2]
[356501278,1742565047905,-152.47,0.00029945,2]
[356501279,1742565047916,-754.92,0.00029958,2]
[356501280,1742565047925,-700.0,0.0003,2]
[356501281,1742565047935,-152.0,0.00030117,7]
[356501282,1742565047944,-521.93,0.00030137,2]
[356501283,1742565047953,-154.0005802,0.00030525,4]
[356501284,1742565047963,-1625.73456313,0.00030889,3]
[356501285,1742565047973,-160.32503188,0.00030889,2]
[356501286,1742565047982,-1142.76907,0.00030979,11]
[356501287,1742565047991,-171888.99262732,0.00030979,11]
[356501288,1742565048005,-26391.33093404,0.00030979,11]
[356501289,1742565502823,1095.7274342,0.00031259,120]
[356501290,1742565567311,-350.0,0.0001309,2]
[356501291,1742565567332,-42.2,0.00014395,2]
[356501292,1742566231700,-200.0,0.0001,2]
[356501293,1742566231710,-150.0,0.00011,2]
[356501294,1742566231720,-150.0,0.00011,2]
[356501295,1742566231729,-250.0,0.00012,2]
[356501296,1742566231739,-30.09523378,0.00013246,2]
[356501297,1742566231753,-119.90476622,0.00013246,2]
[356501298,1742566231762,-230.06654156,0.00014,2]
[356501299,1742566231774,-69.93345844,0.00014,2]
[356501300,1742566231783,-350.0,0.00016,2]
[356501301,1742566231793,-191.18377323,0.00016289,2]
[356501302,1742566231803,-319.82544158,0.00017259,2]
[356501303,1742566231814,-30.17455842,0.00017259,2]
[356501304,1742566231824,-300.0,0.00017633,2]
[356501305,1742566231834,-27.09412904,0.00017634,2]
[356501306,1742566231845,-922.54233573,0.00017634,2]
[356501307,1742566231857,-1265.60853317,0.00017634,2]
[356501308,1742566231959,-2703.31693544,0.00017634,2]
[356501309,1742566231971,-2464.74966662,0.00017634,2]
[356501310,1742566231982,-352.0,0.00017733,2]
[356501311,1742566231991,-787.0,0.00017734,2]
[356501312,1742566232001,-1268.719,0.00017734,2]
[356501313,1742566232010,-1430.0,0.00017734,2]
[356501314,1742566232019,-4083.0,0.00017734,2]
[356501315,1742566232028,-907.0,0.00017734,2]
[356501316,1742566232038,-926.04211203,0.00017734,2]
[356501317,1742566232049,-703.99933242,0.00017734,2]
[356501318,1742566232061,-2307.95855555,0.00017734,2]
[356501320,1742566232071,-151.0,0.00017734,2]
[356501321,1742566232080,-400.0,0.00018,2]
[356501322,1742566232090,-6110.11845045,0.00018098,2]
[356501323,1742566232099,-340.58710323,0.000189,2]
[356501324,1742566232109,-395.0,0.00019247,2]
[356501326,1742566232118,-450.0,0.0002,2]
[356501328,1742566232127,-350.0,0.00020843,2]
[356501330,1742566232136,-500.0,0.00022,2]
[356501331,1742566232146,-2965.4,0.00022518,7]
[356501333,1742566232155,-4276.5165,0.00022732,2]
[356501335,1742566232164,-1656.8691,0.00022732,2]
[356501337,1742566232174,-800.0,0.00023357,2]
[356501339,1742566232184,-3000.0,0.00023357,2]
[356501341,1742566232194,-1300.0,0.00023357,2]
[356501342,1742566232203,-550.0,0.00024,2]
[356501343,1742566232213,-800.0,0.00024453,2]
[356501344,1742566232222,-3000.0,0.00024453,2]
[356501345,1742566232234,-1300.0,0.00024453,2]
[356501346,1742566232243,-1721.18501212,0.00025513,2]
[356501347,1742566232252,-800.0,0.00025549,7]
[356501348,1742566232262,-86.79989884,0.00025549,7]
[356501349,1742566232275,-2002.65164984,0.00025549,7]
[356501356,1742566237797,-910.54845132,0.00025549,7]
[356501357,1742566237806,-786.62447868,0.00025549,7]
[356501358,1742566237818,-513.37552132,0.00025549,7]
[356501359,1742566237829,-485.04762453,0.00025631,10]
[356501360,1742566237907,-6612.887873,0.00025421,2]
[356501361,1742566237916,-272.08237547,0.00025631,10]
[356501362,1742566237925,-182.009,0.00025631,10]
[356501363,1742566237937,-600.0,0.00026,2]
[356501364,1742566237946,-324.47,0.00026071,2]
[356501365,1742566237955,-1000.0,0.00026204,2]
[356501366,1742566237964,-150.0,0.00026217,7]
[356501367,1742566237974,-221.88,0.00026279,2]
[356501368,1742566237984,-200.0,0.00026364,2]
[356501369,1742566237993,-800.0,0.00026371,7]
[356501370,1742566238002,-3000.0,0.00026371,7]
[356501371,1742566238012,-1300.0,0.00026371,7]
[356501372,1742566238021,-799.48,0.00026383,2]
[356501374,1742566238030,-23900.0,0.00026403,2]
[356501375,1742566238039,-799.48,0.00026439,2]
[356501376,1742566238048,-799.48,0.00026494,2]
[356501377,1742566238058,-799.48,0.0002655,2]
[356501378,1742566238068,-799.48,0.00026605,2]
[356501379,1742566238077,-1000.0,0.00026641,2]
[356501380,1742566238087,-799.48,0.00026661,2]
[356501381,1742566238096,-799.48,0.00026716,2]
[356501382,1742566238105,-249.91,0.00026724,2]
[356501383,1742566238116,-150.0,0.00026756,2]
[356501384,1742566238125,-799.48,0.00026772,2]
[356501385,1742566238135,-799.48,0.00026827,2]
[356501386,1742566238145,-162.22,0.00026845,2]
[356501387,1742566238154,-474.1,0.00026849,2]
[356501388,1742566238164,-799.48,0.00026883,2]
[356501389,1742566238173,-732.72,0.00026914,2]
[356501390,1742566238182,-799.48,0.00026939,2]
[356501391,1742566238192,-799.48,0.00026994,2]
[356501392,1742566238201,-799.48,0.0002705,2]
[356501393,1742566238211,-799.48,0.00027105,2]
[356501394,1742566238220,-799.48,0.00027161,2]
[356501395,1742566238230,-2367.90476228,0.00027193,7]
[356501400,1742566239953,-517.36524127,0.00027193,7]
[356501401,1742566240054,-114.72999645,0.00027193,7]
[356501402,1742566240070,-141.56341847,0.00027216,2]
[356501445,1742566246326,-657.91658153,0.00027216,2]
[356501447,1742566246335,-799.48,0.00027272,2]
[356501449,1742566246345,-799.48,0.00027327,2]
[356501451,1742566246354,-799.48,0.00027383,2]
[356501453,1742566246363,-799.48,0.00027438,2]
[356501455,1742566246372,-1411.68684519,0.00027659,2]
[356501457,1742566246382,-183.39,0.00027845,120]
[356501459,1742566246392,-1594.8344,0.0002788,2]
[356501461,1742566246401,-454.25217328,0.0002798,2]
[356501463,1742566246413,-2487.17782672,0.0002798,2]
[356501465,1742566246422,-650.0,0.00028,2]
[356501467,1742566246431,-3000.0,0.00028015,7]
[356501469,1742566246440,-800.0,0.00028015,7]
[356501470,1742566246450,-1300.0,0.00028015,7]
[356501471,1742566246459,-770.15060979,0.00028837,7]
[356501472,1742566246470,-2229.84939021,0.00028837,7]
[356501473,1742566246479,-294.56,0.0002886,2]
[356501474,1742566246489,-425.25729912,0.00029022,2]
[356501475,1742566246498,-732.72,0.00029178,2]
[356501476,1742566246508,-1000.0,0.00029479,2]
[356501477,1742566246517,-3000.0,0.00029659,7]
[356501478,1742566246527,-800.0,0.00029659,7]
[356501479,1742566246536,-1300.0,0.00029659,7]
[356501480,1742566246546,-700.0,0.0003,2]
[356501481,1742566246555,-893.72478957,0.00030028,2]
[356501482,1742566246564,-363.77,0.00030234,2]
[356501483,1742566246573,-205.6383979,0.00030322,4]
[356501484,1742566246582,-3000.0,0.00030481,7]
[356501485,1742566246592,-697.96750876,0.00030778,2]
[356501486,1742566246603,-518.9768,0.00030779,2]
[356501487,1742566246612,-2163.57,0.00030779,2]
[356501488,1742566246622,-339.311,0.00030779,2]
[356501489,1742566246633,-189.3556,0.00030779,2]
[356501490,1742566246642,-10373.47574598,0.000308,8]
[356501491,1742566246654,-254.28749001,0.000308,8]
[356501492,1742566246684,-0.43649742,0.000308,8]
[356501493,1742566246701,-965.27250139,0.000308,8]
[356501494,1742566269024,50000.0,0.00031258,30]
[356501496,1742566430509,-162.06,0.00030278,30]
[356501497,1742566430539,-500.0,0.00031257,30]
[356501498,1742566430564,-10000.0,0.00031258,30]
[356501499,1742566430592,-10000.0,0.00031258,30]
[356501500,1742566430618,-10000.0,0.00031258,30]
[356501501,1742566430641,-10000.0,0.00031258,30]
[356501502,1742566430665,-10000.0,0.00031258,30]
[356501503,1742566430688,-10000.0,0.00031258,30]
[356501504,1742566430712,-10000.0,0.00031258,30]
[356501505,1742566430748,-365.17528137,0.000315,30]
[356501506,1742566430774,-54728.55510386,0.00031506,30]
[356501507,1742566430800,-3985.86089538,0.00031508,30]
[356501508,1742566430828,-171.0,0.00031518,30]
[356501509,1742566430854,-209.0,0.0003157,30]
[356501510,1742566430880,-150.0,0.00031576,30]
[356501511,1742566430910,-500.0,0.00032,120]
[356501512,1742566430936,-3000.0,0.00032947,60]
[356501513,1742566430961,-700.0,0.00032947,60]
[356501514,1742566430987,-500.0,0.00032947,60]
[356501515,1742566431014,-500.0,0.00033,120]
[356501516,1742566431046,-790.73,0.000335,31]
[356501517,1742566431075,-790.73,0.000335,31]
[356501518,1742566431103,-790.73,0.000335,31]
[356501519,1742566431130,-790.73,0.000335,31]
[356501520,1742566431158,-790.73,0.000335,31]
[356501521,1742566431320,-790.73,0.000335,31]
[356501522,1742566431354,-790.73,0.000335,31]
[356501523,1742566431382,-790.73,0.000335,31]
[356501524,1742566431412,-790.73,0.000335,31]
[356501525,1742566431439,-790.73,0.000335,31]
[356501526,1742566431467,-790.73,0.000335,31]
[356501527,1742566431497,-790.73,0.000335,31]
[356501528,1742566431523,-150.0,0.00033955,120]
[356501529,1742566431548,-500.0,0.00034,120]
[356501530,1742566431573,-3000.0,0.00034043,60]
[356501531,1742566431596,-700.0,0.00034043,60]
[356501532,1742566431619,-500.0,0.00034043,60]
[356501533,1742566431642,-498.44295592,0.00034258,30]
[356501534,1742566431666,-157.8259156,0.00034258,30]
[356501535,1742566431692,-500.0,0.00035,120]
[356501536,1742566431716,-3000.0,0.00035139,60]
[356501537,1742566431740,-700.0,0.00035139,60]
[356501538,1742566431763,-500.0,0.00035139,60]
[356501539,1742566431788,-3000.0,0.00036235,60]
[356501540,1742566431813,-700.0,0.00036235,60]
[356501541,1742566431839,-500.0,0.00036235,60]
[356501542,1742566431864,-11171.89185023,0.000368,60]
[356501543,1742566431889,-3000.0,0.00037331,60]
[356501544,1742566431916,-700.0,0.00037331,60]
[356501545,1742566431941,-500.0,0.00037331,60]
[356501546,1742566431966,-300.0,0.000374,120]
[356501547,1742566431993,-300.0,0.00038,120]
[356501548,1742566432018,-214.00555964,0.00038,120]
[356501549,1742566432042,-163.73009841,0.00038,120]
[356501550,1742566432067,-988.54,0.00038356,120]
[356501551,1742566432091,-13747.38,0.00038356,60]
[356501552,1742566432147,-3000.0,0.00038427,60]
[356501553,1742566432194,-770.35627114,0.00038427,60]
[356501554,1742566432246,-223.23687528,0.00038427,60]
[356501555,1742566432295,-178.6732,0.00038888,30]
[356501556,1742566432344,-988.54,0.00039041,120]
[356501557,1742566432387,-3000.0,0.00039523,60]
[356501558,1742566432431,-50000.0,0.0003969,39]
[356501559,1742566432475,-9327.0,0.00039699,120]
[356501560,1742566432516,-988.54,0.00039726,120]